[Event "Titled Tuesday Blitz December 20 Early 2022"]
[White "Legendinunknown"]
[Black "Sadykov_Ramil"]
[WhiteElo "2731"]
[BlackElo "2546"]
[Result "1-0"]
[Round "09"]
[TimeControl "180+2"]
[Date "2022.12.20"]
[WhiteClock "0:00:56"]
[BlackClock "0:00:01"]

1. d4 {[%clk 0:03:00]}  Nf6 {[%clk 0:02:59]} 2. c4 {[%clk 0:02:59]}  g6 {[%clk 0:02:59]} 3. Nc3 {[%clk 0:02:56]}  d5 {[%clk 0:03:00]} 4. h4 {[%clk 0:02:56]}  h6 {[%clk 0:02:53]} 5. cxd5 {[%clk 0:02:53]}  Nxd5 {[%clk 0:02:53]} 6. e4 {[%clk 0:02:54]}  Nxc3 {[%clk 0:02:53]} 7. bxc3 {[%clk 0:02:55]}  Bg7 {[%clk 0:02:54]} 8. Bc4 {[%clk 0:02:56]}  c5 {[%clk 0:02:54]} 9. Ne2 {[%clk 0:02:56]}  Nc6 {[%clk 0:02:51]} 10. Be3 {[%clk 0:02:56]}  O-O {[%clk 0:02:48]} 11. f3 {[%clk 0:02:51]}  cxd4 {[%clk 0:02:42]} 12. cxd4 {[%clk 0:02:48]}  Qa5+ {[%clk 0:02:41]} 13. Kf2 {[%clk 0:02:47]}  Rd8 {[%clk 0:02:39]} 14. Rc1 {[%clk 0:02:45]}  e6 {[%clk 0:02:05]} 15. h5 {[%clk 0:02:34]}  g5 {[%clk 0:01:57]} 16. Rc2 {[%clk 0:02:23]}  Bd7 {[%clk 0:01:53]} 17. Qc1 {[%clk 0:02:22]}  Be8 {[%clk 0:01:42]} 18. Rd1 {[%clk 0:02:20]}  Rac8 {[%clk 0:01:30]} 19. Bb3 {[%clk 0:02:10]}  Bf8 {[%clk 0:01:20]} 20. d5 {[%clk 0:02:00]}  exd5 {[%clk 0:01:07]} 21. Rxd5 {[%clk 0:01:58]}  Qa3 {[%clk 0:00:56]} 22. Bxg5 {[%clk 0:01:49]}  hxg5 {[%clk 0:00:46]} 23. Qxg5+ {[%clk 0:01:49]}  Kh8 {[%clk 0:00:45]} 24. Rxd8 {[%clk 0:01:43]}  Rxd8 {[%clk 0:00:37]} 25. Rxc6 {[%clk 0:01:41]}  Bxc6 {[%clk 0:00:27]} 26. Qxd8 {[%clk 0:01:35]}  Qc5+ {[%clk 0:00:28]} 27. Qd4+ {[%clk 0:01:34]}  Qxd4+ {[%clk 0:00:27]} 28. Nxd4 {[%clk 0:01:35]}  Bc5 {[%clk 0:00:27]} 29. Ke3 {[%clk 0:01:35]}  Kg7 {[%clk 0:00:27]} 30. g4 {[%clk 0:01:32]}  f6 {[%clk 0:00:21]} 31. Kd3 {[%clk 0:01:29]}  Bd7 {[%clk 0:00:20]} 32. Ne6+ {[%clk 0:01:18]}  Bxe6 {[%clk 0:00:20]} 33. Bxe6 {[%clk 0:01:19]}  Kh6 {[%clk 0:00:21]} 34. f4 {[%clk 0:01:18]}  Bd6 {[%clk 0:00:20]} 35. Ke3 {[%clk 0:01:18]}  Bc5+ {[%clk 0:00:19]} 36. Kf3 {[%clk 0:01:18]}  a5 {[%clk 0:00:16]} 37. Bd7 {[%clk 0:01:16]}  b6 {[%clk 0:00:16]} 38. Be8 {[%clk 0:01:15]}  Bd4 {[%clk 0:00:14]} 39. e5 {[%clk 0:01:14]}  fxe5 {[%clk 0:00:14]} 40. g5+ {[%clk 0:01:14]}  Kg7 {[%clk 0:00:14]} 41. f5 {[%clk 0:01:14]}  Bc3 {[%clk 0:00:11]} 42. h6+ {[%clk 0:01:12]}  Kh7 {[%clk 0:00:11]} 43. Bg6+ {[%clk 0:01:10]}  Kh8 {[%clk 0:00:11]} 44. f6 {[%clk 0:01:10]}  Bb4 {[%clk 0:00:04]} 45. Bd3 {[%clk 0:01:04]}  Bf8 {[%clk 0:00:03]} 46. Kg4 {[%clk 0:01:03]}  a4 {[%clk 0:00:03]} 47. Kf5 {[%clk 0:01:02]}  a3 {[%clk 0:00:02]} 48. Kxe5 {[%clk 0:01:00]}  Kg8 {[%clk 0:00:03]} 49. Ke6 {[%clk 0:00:58]}  Bc5 {[%clk 0:00:02]} 50. g6 {[%clk 0:00:58]}  Bf8 {[%clk 0:00:01]} 51. f7+ {[%clk 0:00:56]}  Kh8 {[%clk 0:00:01]} 52. g7+ {[%clk 0:00:56]} 1-0


[Site "https://www.chess.com"]

[Event "Titled Tuesday Blitz December 20 Early 2022"]
[White "Liyanage, Ranindu Dilshan"]
[Black "Giorno, Sven"]
[WhiteFideId "9915834"]
[BlackFideId "20645082"]
[WhiteElo "2342"]
[BlackElo "2517"]
[Result "1-0"]
[Round "09"]
[TimeControl "180+2"]
[Date "2022.12.20"]
[WhiteClock "0:00:37"]
[BlackClock "0:00:11"]

1. e4 {[%clk 0:02:59]}  e5 {[%clk 0:02:46]} 2. Nf3 {[%clk 0:02:58]}  Nf6 {[%clk 0:02:44]} 3. Nc3 {[%clk 0:02:56]}  Nc6 {[%clk 0:02:43]} 4. h3 {[%clk 0:02:56]}  Bc5 {[%clk 0:02:39]} 5. Nxe5 {[%clk 0:02:51]}  Nxe5 {[%clk 0:02:24]} 6. d4 {[%clk 0:02:51]}  Bb4 {[%clk 0:02:21]} 7. dxe5 {[%clk 0:02:51]}  Nxe4 {[%clk 0:02:21]} 8. Qf3 {[%clk 0:02:41]}  d5 {[%clk 0:02:03]} 9. Be2 {[%clk 0:02:37]}  O-O {[%clk 0:02:00]} 10. O-O {[%clk 0:02:33]}  Bxc3 {[%clk 0:01:57]} 11. bxc3 {[%clk 0:02:28]}  f6 {[%clk 0:01:54]} 12. exf6 {[%clk 0:02:09]}  Qxf6 {[%clk 0:01:52]} 13. Qxf6 {[%clk 0:02:08]}  Rxf6 {[%clk 0:01:52]} 14. c4 {[%clk 0:02:08]}  Nc3 {[%clk 0:01:42]} 15. Bd3 {[%clk 0:02:05]}  dxc4 {[%clk 0:01:41]} 16. Bxc4+ {[%clk 0:02:00]}  Be6 {[%clk 0:01:41]} 17. Bd3 {[%clk 0:02:00]}  Bf5 {[%clk 0:01:31]} 18. Bc4+ {[%clk 0:01:46]}  Be6 {[%clk 0:01:26]} 19. Bd3 {[%clk 0:01:34]}  Bf5 {[%clk 0:01:26]} 20. Bb2 {[%clk 0:01:28]}  Bxd3 {[%clk 0:01:25]} 21. cxd3 {[%clk 0:01:29]}  Ne2+ {[%clk 0:01:24]} 22. Kh2 {[%clk 0:01:29]}  Rd6 {[%clk 0:01:18]} 23. Rfe1 {[%clk 0:01:07]}  Nd4 {[%clk 0:01:14]} 24. Re7 {[%clk 0:01:05]}  Rc8 {[%clk 0:01:02]} 25. Rc1 {[%clk 0:01:02]}  c5 {[%clk 0:00:24]} 26. Rxb7 {[%clk 0:00:59]}  a6 {[%clk 0:00:23]} 27. Re1 {[%clk 0:00:58]}  Re6 {[%clk 0:00:13]} 28. Rxe6 {[%clk 0:00:52]}  Nxe6 {[%clk 0:00:14]} 29. Rb6 {[%clk 0:00:52]}  Kf7 {[%clk 0:00:12]} 30. Rxa6 {[%clk 0:00:52]}  Rd8 {[%clk 0:00:12]} 31. Ra7+ {[%clk 0:00:46]}  Kf8 {[%clk 0:00:11]} 32. Ra3 {[%clk 0:00:39]}  Nf4 {[%clk 0:00:11]} 33. Rc3 {[%clk 0:00:39]}  Nxd3 {[%clk 0:00:11]} 34. Ba3 {[%clk 0:00:40]}  Kf7 {[%clk 0:00:09]} 35. Bxc5 {[%clk 0:00:37]}  Ne5 {[%clk 0:00:08]} 36. Be3 {[%clk 0:00:36]}  Ra8 {[%clk 0:00:08]} 37. a3 {[%clk 0:00:35]}  Ra4 {[%clk 0:00:07]} 38. Rc7+ {[%clk 0:00:34]}  Ke6 {[%clk 0:00:06]} 39. Ra7 {[%clk 0:00:35]}  Rxa7 {[%clk 0:00:05]} 40. Bxa7 {[%clk 0:00:36]}  Kd5 {[%clk 0:00:06]} 41. a4 {[%clk 0:00:33]}  Nc6 {[%clk 0:00:06]} 42. Bb6 {[%clk 0:00:32]}  Kc4 {[%clk 0:00:07]} 43. a5 {[%clk 0:00:33]}  Kb5 {[%clk 0:00:07]} 44. Kg3 {[%clk 0:00:33]}  Nxa5 {[%clk 0:00:08]} 45. Bxa5 {[%clk 0:00:34]}  Kxa5 {[%clk 0:00:09]} 46. Kf4 {[%clk 0:00:34]}  Kb6 {[%clk 0:00:09]} 47. Ke5 {[%clk 0:00:35]}  Kc5 {[%clk 0:00:10]} 48. f4 {[%clk 0:00:35]}  Kc4 {[%clk 0:00:09]} 49. g4 {[%clk 0:00:35]}  Kd3 {[%clk 0:00:09]} 50. g5 {[%clk 0:00:35]}  Ke3 {[%clk 0:00:10]} 51. f5 {[%clk 0:00:36]}  Kf3 {[%clk 0:00:11]} 52. f6 {[%clk 0:00:37]} 1-0


[Site "https://www.chess.com"]

[Event "Titled Tuesday Blitz December 20 Early 2022"]
[White "Manukyan_Artak"]
[Black "Lasinika, M M D"]
[BlackFideId "9974555"]
[WhiteElo "2560"]
[BlackElo "1072"]
[Result "1-0"]
[Round "09"]
[TimeControl "180+2"]
[Date "2022.12.20"]
[WhiteClock "0:01:13"]
[BlackClock "0:00:06"]

1. e4 {[%clk 0:03:00]}  e6 {[%clk 0:02:55]} 2. d4 {[%clk 0:02:57]}  d5 {[%clk 0:02:54]} 3. e5 {[%clk 0:02:58]}  c5 {[%clk 0:02:54]} 4. c3 {[%clk 0:02:58]}  Nc6 {[%clk 0:02:54]} 5. Nf3 {[%clk 0:02:59]}  Qb6 {[%clk 0:02:53]} 6. a3 {[%clk 0:02:59]}  c4 {[%clk 0:02:53]} 7. Nbd2 {[%clk 0:02:58]}  Na5 {[%clk 0:02:52]} 8. Rb1 {[%clk 0:02:59]}  Bd7 {[%clk 0:02:52]} 9. h4 {[%clk 0:02:57]}  Ne7 {[%clk 0:02:48]} 10. g4 {[%clk 0:02:55]}  Nec6 {[%clk 0:02:47]} 11. Bh3 {[%clk 0:02:54]}  O-O-O {[%clk 0:02:47]} 12. Ng5 {[%clk 0:02:51]}  Be8 {[%clk 0:02:47]} 13. f4 {[%clk 0:02:51]}  h6 {[%clk 0:02:45]} 14. Ngf3 {[%clk 0:02:51]}  Be7 {[%clk 0:02:45]} 15. Kf2 {[%clk 0:02:49]}  g6 {[%clk 0:02:44]} 16. Kg3 {[%clk 0:02:49]}  Bd7 {[%clk 0:02:42]} 17. Re1 {[%clk 0:02:39]}  f6 {[%clk 0:02:40]} 18. exf6 {[%clk 0:02:37]}  Bxf6 {[%clk 0:02:39]} 19. Ne5 {[%clk 0:02:37]}  Nxe5 {[%clk 0:02:37]} 20. fxe5 {[%clk 0:02:36]}  Be7 {[%clk 0:02:37]} 21. Nf3 {[%clk 0:02:34]}  Rdf8 {[%clk 0:02:35]} 22. Be3 {[%clk 0:02:25]}  Qd8 {[%clk 0:02:29]} 23. Qd2 {[%clk 0:02:13]}  Nb3 {[%clk 0:02:25]} 24. Qe2 {[%clk 0:02:08]}  Rf7 {[%clk 0:02:23]} 25. g5 {[%clk 0:01:55]}  hxg5 {[%clk 0:02:20]} 26. Nxg5 {[%clk 0:01:52]}  Bxg5 {[%clk 0:02:07]} 27. Bxg5 {[%clk 0:01:52]}  Qg8 {[%clk 0:01:56]} 28. Rf1 {[%clk 0:01:49]}  Rhh7 {[%clk 0:01:53]} 29. Rf6 {[%clk 0:01:46]}  Rxf6 {[%clk 0:01:41]} 30. exf6 {[%clk 0:01:46]}  Qf8 {[%clk 0:01:35]} 31. Re1 {[%clk 0:01:41]}  Qd6+ {[%clk 0:01:32]} 32. Qe5 {[%clk 0:01:42]}  Kc7 {[%clk 0:01:00]} 33. Qxd6+ {[%clk 0:01:27]}  Kxd6 {[%clk 0:00:58]} 34. Bf4+ {[%clk 0:01:27]}  Kc6 {[%clk 0:00:57]} 35. Bxe6 {[%clk 0:01:27]}  b5 {[%clk 0:00:25]} 36. f7 {[%clk 0:01:12]}  Rh8 {[%clk 0:00:15]} 37. Bxd7+ {[%clk 0:01:12]}  Kxd7 {[%clk 0:00:14]} 38. Bh6 {[%clk 0:01:13]}  Rxh6 {[%clk 0:00:06]} 39. f8=Q {[%clk 0:01:13]} 1-0


[Site "https://www.chess.com"]

[Event "Titled Tuesday Blitz December 20 Early 2022"]
[White "MathiasWomacka"]
[Black "Tarno, Brian"]
[BlackFideId "10833820"]
[WhiteElo "2562"]
[BlackElo "2169"]
[Result "1-0"]
[Round "09"]
[TimeControl "180+2"]
[Date "2022.12.20"]
[WhiteClock "0:00:07"]
[BlackClock "0:00:02"]

1. e4 {[%clk 0:02:53]}  c5 {[%clk 0:02:59]} 2. Nf3 {[%clk 0:02:49]}  e6 {[%clk 0:03:00]} 3. d4 {[%clk 0:02:49]}  cxd4 {[%clk 0:03:01]} 4. Nxd4 {[%clk 0:02:49]}  a6 {[%clk 0:03:02]} 5. Bd3 {[%clk 0:02:48]}  Bc5 {[%clk 0:03:00]} 6. Nb3 {[%clk 0:02:46]}  Be7 {[%clk 0:03:00]} 7. Qg4 {[%clk 0:02:46]}  g6 {[%clk 0:02:59]} 8. Qe2 {[%clk 0:02:46]}  d6 {[%clk 0:02:59]} 9. O-O {[%clk 0:02:43]}  Nd7 {[%clk 0:02:58]} 10. a4 {[%clk 0:02:40]}  b6 {[%clk 0:02:51]} 11. Na3 {[%clk 0:02:39]}  Qc7 {[%clk 0:02:43]} 12. Nc4 {[%clk 0:02:36]}  Bb7 {[%clk 0:02:36]} 13. a5 {[%clk 0:02:23]}  b5 {[%clk 0:02:19]} 14. Nb6 {[%clk 0:02:22]}  Nxb6 {[%clk 0:01:54]} 15. axb6 {[%clk 0:02:23]}  Qxb6 {[%clk 0:01:55]} 16. Na5 {[%clk 0:02:19]}  h5 {[%clk 0:01:17]} 17. b4 {[%clk 0:01:54]}  Nf6 {[%clk 0:01:12]} 18. c4 {[%clk 0:01:53]}  bxc4 {[%clk 0:00:59]} 19. Bxc4 {[%clk 0:01:38]}  Kf8 {[%clk 0:00:27]} 20. Bb2 {[%clk 0:01:17]}  Kg7 {[%clk 0:00:15]} 21. Nxb7 {[%clk 0:01:04]}  Qxb7 {[%clk 0:00:15]} 22. Bxa6 {[%clk 0:01:04]}  Qxb4 {[%clk 0:00:15]} 23. e5 {[%clk 0:00:41]}  dxe5 {[%clk 0:00:14]} 24. Ba3 {[%clk 0:00:42]}  Qf4 {[%clk 0:00:05]} 25. Bxe7 {[%clk 0:00:39]}  Ng4 {[%clk 0:00:05]} 26. g3 {[%clk 0:00:38]}  Qf5 {[%clk 0:00:04]} 27. Bd3 {[%clk 0:00:32]}  e4 {[%clk 0:00:05]} 28. Bxe4 {[%clk 0:00:29]}  Qe5 {[%clk 0:00:05]} 29. Rxa8 {[%clk 0:00:19]}  Rxa8 {[%clk 0:00:05]} 30. Bf3 {[%clk 0:00:19]}  Qxe2 {[%clk 0:00:04]} 31. Bxe2 {[%clk 0:00:20]}  Ne5 {[%clk 0:00:04]} 32. Bc5 {[%clk 0:00:18]}  Ra2 {[%clk 0:00:04]} 33. Bd4 {[%clk 0:00:17]}  Rxe2 {[%clk 0:00:04]} 34. f4 {[%clk 0:00:17]}  f6 {[%clk 0:00:03]} 35. fxe5 {[%clk 0:00:18]}  fxe5 {[%clk 0:00:04]} 36. Bc3 {[%clk 0:00:17]}  g5 {[%clk 0:00:04]} 37. Re1 {[%clk 0:00:17]}  Rc2 {[%clk 0:00:04]} 38. Bxe5+ {[%clk 0:00:16]}  Kg6 {[%clk 0:00:05]} 39. Bd4 {[%clk 0:00:16]}  Kf5 {[%clk 0:00:05]} 40. Re5+ {[%clk 0:00:14]}  Kg4 {[%clk 0:00:05]} 41. Rxe6 {[%clk 0:00:14]}  Rc1+ {[%clk 0:00:05]} 42. Kg2 {[%clk 0:00:14]}  Rc2+ {[%clk 0:00:05]} 43. Bf2 {[%clk 0:00:14]}  h4 {[%clk 0:00:05]} 44. Re4+ {[%clk 0:00:14]}  Kh5 {[%clk 0:00:05]} 45. gxh4 {[%clk 0:00:12]}  gxh4 {[%clk 0:00:05]} 46. Rxh4+ {[%clk 0:00:11]}  Kg5 {[%clk 0:00:06]} 47. Rd4 {[%clk 0:00:12]}  Kh5 {[%clk 0:00:06]} 48. Kg3 {[%clk 0:00:11]}  Rc3+ {[%clk 0:00:06]} 49. Kg2 {[%clk 0:00:11]}  Kg5 {[%clk 0:00:05]} 50. Re4 {[%clk 0:00:11]}  Kh5 {[%clk 0:00:05]} 51. Re3 {[%clk 0:00:11]}  Rc2 {[%clk 0:00:06]} 52. Kg3 {[%clk 0:00:11]}  Rc4 {[%clk 0:00:05]} 53. Re5+ {[%clk 0:00:10]}  Kh6 {[%clk 0:00:05]} 54. Be3+ {[%clk 0:00:11]}  Kg6 {[%clk 0:00:05]} 55. h4 {[%clk 0:00:11]}  Rc3 {[%clk 0:00:05]} 56. Kg4 {[%clk 0:00:10]}  Kf6 {[%clk 0:00:05]} 57. Re4 {[%clk 0:00:09]}  Kg6 {[%clk 0:00:04]} 58. Bd4 {[%clk 0:00:09]}  Rc4 {[%clk 0:00:03]} 59. h5+ {[%clk 0:00:08]}  Kh7 {[%clk 0:00:03]} 60. Re7+ {[%clk 0:00:07]}  Kg8 {[%clk 0:00:02]} 61. Rd7 {[%clk 0:00:07]} 1-0


[Site "https://www.chess.com"]

[Event "Titled Tuesday Blitz December 20 Early 2022"]
[White "MatthewG-p4p"]
[Black "Beca, Rodrigo Martins"]
[BlackFideId "1954490"]
[WhiteElo "2825"]
[BlackElo "2976"]
[Result "1-0"]
[Round "09"]
[TimeControl "180+2"]
[Date "2022.12.20"]
[WhiteClock "0:00:06"]
[BlackClock "0:00:07"]

1. e4 {[%clk 0:03:00]}  c5 {[%clk 0:02:50]} 2. c3 {[%clk 0:02:59]}  d5 {[%clk 0:02:49]} 3. exd5 {[%clk 0:03:00]}  Nf6 {[%clk 0:02:49]} 4. d4 {[%clk 0:02:58]}  Nxd5 {[%clk 0:02:47]} 5. Nf3 {[%clk 0:02:55]}  e6 {[%clk 0:02:45]} 6. Bc4 {[%clk 0:02:53]}  Nc6 {[%clk 0:02:43]} 7. O-O {[%clk 0:02:49]}  Be7 {[%clk 0:02:42]} 8. dxc5 {[%clk 0:02:39]}  Bxc5 {[%clk 0:02:43]} 9. Qe2 {[%clk 0:02:39]}  O-O {[%clk 0:02:40]} 10. Nbd2 {[%clk 0:02:32]}  Nf4 {[%clk 0:02:33]} 11. Qe4 {[%clk 0:02:32]}  Bd6 {[%clk 0:02:29]} 12. Bb3 {[%clk 0:02:24]}  f5 {[%clk 0:02:20]} 13. Qe3 {[%clk 0:02:20]}  Nd5 {[%clk 0:02:20]} 14. Qe2 {[%clk 0:02:08]}  Bc7 {[%clk 0:01:57]} 15. Nc4 {[%clk 0:02:05]}  Qf6 {[%clk 0:01:57]} 16. Re1 {[%clk 0:01:59]}  f4 {[%clk 0:01:53]} 17. Qe4 {[%clk 0:01:47]}  Nce7 {[%clk 0:01:20]} 18. Nce5 {[%clk 0:01:43]}  Qf5 {[%clk 0:01:12]} 19. Qe2 {[%clk 0:01:35]}  Qh5 {[%clk 0:01:10]} 20. c4 {[%clk 0:01:25]}  Nb4 {[%clk 0:01:07]} 21. Bd2 {[%clk 0:01:23]}  Nbc6 {[%clk 0:01:06]} 22. Bc3 {[%clk 0:01:20]}  Ng6 {[%clk 0:01:05]} 23. Nxg6 {[%clk 0:00:55]}  hxg6 {[%clk 0:00:59]} 24. Rad1 {[%clk 0:00:53]}  g5 {[%clk 0:00:44]} 25. Ne5 {[%clk 0:00:31]}  Qxe2 {[%clk 0:00:43]} 26. Rxe2 {[%clk 0:00:31]}  Bxe5 {[%clk 0:00:40]} 27. Bxe5 {[%clk 0:00:32]}  Rf5 {[%clk 0:00:39]} 28. Bc3 {[%clk 0:00:27]}  g4 {[%clk 0:00:36]} 29. Rd6 {[%clk 0:00:22]}  Kf7 {[%clk 0:00:30]} 30. Bc2 {[%clk 0:00:20]}  Rh5 {[%clk 0:00:26]} 31. Be4 {[%clk 0:00:17]}  Rc5 {[%clk 0:00:18]} 32. b3 {[%clk 0:00:16]}  Ke7 {[%clk 0:00:18]} 33. Red2 {[%clk 0:00:16]}  g5 {[%clk 0:00:16]} 34. Bb2 {[%clk 0:00:15]}  Nb4 {[%clk 0:00:14]} 35. Ba3 {[%clk 0:00:13]}  a5 {[%clk 0:00:13]} 36. f3 {[%clk 0:00:13]}  gxf3 {[%clk 0:00:11]} 37. gxf3 {[%clk 0:00:14]}  Rc7 {[%clk 0:00:11]} 38. Rb6 {[%clk 0:00:10]}  Kf7 {[%clk 0:00:11]} 39. Bb2 {[%clk 0:00:09]}  Nc6 {[%clk 0:00:10]} 40. Rb5 {[%clk 0:00:08]}  Bd7 {[%clk 0:00:10]} 41. Rxg5 {[%clk 0:00:09]}  Rg8 {[%clk 0:00:10]} 42. Rdg2 {[%clk 0:00:09]}  Rxg5 {[%clk 0:00:09]} 43. Rxg5 {[%clk 0:00:10]}  e5 {[%clk 0:00:08]} 44. Bxe5 {[%clk 0:00:08]}  Nxe5 {[%clk 0:00:07]} 45. Rxe5 {[%clk 0:00:09]}  a4 {[%clk 0:00:08]} 46. Bd5+ {[%clk 0:00:07]}  Kf6 {[%clk 0:00:08]} 47. Re4 {[%clk 0:00:08]}  axb3 {[%clk 0:00:09]} 48. axb3 {[%clk 0:00:07]}  Kg6 {[%clk 0:00:07]} 49. Rxf4 {[%clk 0:00:06]}  Bf5 {[%clk 0:00:06]} 50. Kf2 {[%clk 0:00:05]}  Kg5 {[%clk 0:00:06]} 51. Rd4 {[%clk 0:00:06]}  Kf6 {[%clk 0:00:06]} 52. h4 {[%clk 0:00:06]}  Ke5 {[%clk 0:00:07]} 53. Rd1 {[%clk 0:00:06]}  Rh7 {[%clk 0:00:06]} 54. Rh1 {[%clk 0:00:06]}  Bg6 {[%clk 0:00:06]} 55. Ke3 {[%clk 0:00:06]}  Bh5 {[%clk 0:00:06]} 56. f4+ {[%clk 0:00:06]}  Kd6 {[%clk 0:00:06]} 57. Kd4 {[%clk 0:00:06]}  b6 {[%clk 0:00:06]} 58. b4 {[%clk 0:00:07]}  Rg7 {[%clk 0:00:06]} 59. c5+ {[%clk 0:00:07]}  Kc7 {[%clk 0:00:06]} 60. Ra1 {[%clk 0:00:07]}  bxc5+ {[%clk 0:00:07]} 61. bxc5 {[%clk 0:00:07]}  Rg4 {[%clk 0:00:07]} 62. Ra7+ {[%clk 0:00:07]}  Kb8 {[%clk 0:00:07]} 63. Ra8+ {[%clk 0:00:07]}  Kc7 {[%clk 0:00:08]} 64. Ke5 {[%clk 0:00:06]}  Rxh4 {[%clk 0:00:08]} 65. Ra7+ {[%clk 0:00:06]}  Kb8 {[%clk 0:00:08]} 66. Rh7 {[%clk 0:00:07]}  Rh3 {[%clk 0:00:07]} 67. Kd6 {[%clk 0:00:06]}  Bg4 {[%clk 0:00:06]} 68. Rxh3 {[%clk 0:00:05]}  Bxh3 {[%clk 0:00:07]} 69. Be6 {[%clk 0:00:06]} 1-0


[Site "https://www.chess.com"]

[Event "Titled Tuesday Blitz December 20 Early 2022"]
[White "Mekhitarian, Krikor Sevag"]
[Black "Makswolf200817"]
[WhiteFideId "2107660"]
[WhiteElo "2604"]
[BlackElo "2651"]
[Result "0-1"]
[Round "09"]
[TimeControl "180+2"]
[Date "2022.12.20"]
[WhiteClock "0:00:01"]
[BlackClock "0:00:12"]

1. Nf3 {[%clk 0:02:54]}  d5 {[%clk 0:02:59]} 2. c4 {[%clk 0:02:52]}  e6 {[%clk 0:02:59]} 3. e3 {[%clk 0:02:44]}  Nf6 {[%clk 0:02:57]} 4. Nc3 {[%clk 0:02:44]}  c5 {[%clk 0:02:29]} 5. cxd5 {[%clk 0:02:43]}  exd5 {[%clk 0:02:29]} 6. d4 {[%clk 0:02:42]}  Nc6 {[%clk 0:02:29]} 7. Bb5 {[%clk 0:02:41]}  a6 {[%clk 0:02:18]} 8. Bxc6+ {[%clk 0:02:41]}  bxc6 {[%clk 0:02:19]} 9. O-O {[%clk 0:02:34]}  Be7 {[%clk 0:02:13]} 10. dxc5 {[%clk 0:02:33]}  Bxc5 {[%clk 0:02:13]} 11. b3 {[%clk 0:02:33]}  O-O {[%clk 0:02:12]} 12. Bb2 {[%clk 0:02:33]}  Bg4 {[%clk 0:02:12]} 13. Rc1 {[%clk 0:02:31]}  Bd6 {[%clk 0:02:11]} 14. h3 {[%clk 0:02:24]}  Bh5 {[%clk 0:02:11]} 15. Ne2 {[%clk 0:02:24]}  Bxf3 {[%clk 0:01:52]} 16. gxf3 {[%clk 0:02:25]}  Rc8 {[%clk 0:01:52]} 17. f4 {[%clk 0:02:17]}  Ne4 {[%clk 0:01:49]} 18. Qd4 {[%clk 0:01:56]}  Nf6 {[%clk 0:01:23]} 19. Ng3 {[%clk 0:01:55]}  Qd7 {[%clk 0:01:22]} 20. Kh2 {[%clk 0:01:33]}  Kh8 {[%clk 0:00:59]} 21. Qxf6 {[%clk 0:00:13]}  gxf6 {[%clk 0:00:58]} 22. Bxf6+ {[%clk 0:00:14]}  Kg8 {[%clk 0:00:59]} 23. Rg1 {[%clk 0:00:14]}  Rfd8 {[%clk 0:00:42]} 24. Nf5+ {[%clk 0:00:04]}  Kf8 {[%clk 0:00:43]} 25. Rg5 {[%clk 0:00:05]}  Qc7 {[%clk 0:00:21]} 26. Rcg1 {[%clk 0:00:04]}  Ke8 {[%clk 0:00:21]} 27. Rg7 {[%clk 0:00:02]}  Bxf4+ {[%clk 0:00:19]} 28. Kh1 {[%clk 0:00:02]}  Be5 {[%clk 0:00:19]} 29. Bxe5 {[%clk 0:00:01]}  Qxe5 {[%clk 0:00:19]} 30. Nh6 {[%clk 0:00:02]}  Qf6 {[%clk 0:00:13]} 31. Rg8+ {[%clk 0:00:01]}  Ke7 {[%clk 0:00:12]} 0-1


[Site "https://www.chess.com"]

[Event "Titled Tuesday Blitz December 20 Early 2022"]
[White "Mikhail_Bryakin"]
[Black "szachuspl"]
[WhiteElo "2765"]
[BlackElo "2642"]
[Result "0-1"]
[Round "09"]
[TimeControl "180+2"]
[Date "2022.12.20"]
[WhiteClock "0:00:24"]
[BlackClock "0:00:21"]

1. d4 {[%clk 0:03:00]}  Nf6 {[%clk 0:02:59]} 2. Nc3 {[%clk 0:02:59]}  d5 {[%clk 0:02:55]} 3. Bf4 {[%clk 0:02:57]}  Bf5 {[%clk 0:02:54]} 4. f3 {[%clk 0:02:54]}  e6 {[%clk 0:02:48]} 5. g4 {[%clk 0:02:53]}  Bg6 {[%clk 0:02:48]} 6. h4 {[%clk 0:02:54]}  h5 {[%clk 0:02:43]} 7. g5 {[%clk 0:02:53]}  Ng8 {[%clk 0:02:43]} 8. e3 {[%clk 0:02:54]}  Bd6 {[%clk 0:02:42]} 9. Nh3 {[%clk 0:02:53]}  Ne7 {[%clk 0:02:41]} 10. Bd3 {[%clk 0:02:53]}  Bxd3 {[%clk 0:02:40]} 11. Qxd3 {[%clk 0:02:53]}  g6 {[%clk 0:02:36]} 12. O-O-O {[%clk 0:02:51]}  Nbc6 {[%clk 0:02:33]} 13. Kb1 {[%clk 0:02:47]}  Qd7 {[%clk 0:02:33]} 14. e4 {[%clk 0:02:45]}  Bxf4 {[%clk 0:02:30]} 15. Nxf4 {[%clk 0:02:46]}  O-O-O {[%clk 0:02:30]} 16. exd5 {[%clk 0:02:35]}  Nxd5 {[%clk 0:02:18]} 17. Ncxd5 {[%clk 0:02:31]}  exd5 {[%clk 0:02:18]} 18. Rhe1 {[%clk 0:02:30]}  Rhe8 {[%clk 0:02:16]} 19. c3 {[%clk 0:02:28]}  Ne7 {[%clk 0:02:14]} 20. Re5 {[%clk 0:02:21]}  c6 {[%clk 0:02:08]} 21. c4 {[%clk 0:02:10]}  dxc4 {[%clk 0:02:04]} 22. Qxc4 {[%clk 0:02:10]}  Nf5 {[%clk 0:02:04]} 23. Rxe8 {[%clk 0:01:41]}  Rxe8 {[%clk 0:02:04]} 24. Qa4 {[%clk 0:01:40]}  a6 {[%clk 0:01:45]} 25. d5 {[%clk 0:01:40]}  c5 {[%clk 0:01:31]} 26. Qa3 {[%clk 0:01:13]}  Qd6 {[%clk 0:01:24]} 27. Nd3 {[%clk 0:01:12]}  c4 {[%clk 0:01:16]} 28. Rc1 {[%clk 0:01:01]}  Qxa3 {[%clk 0:01:13]} 29. Rxc4+ {[%clk 0:01:00]}  Kb8 {[%clk 0:01:09]} 30. bxa3 {[%clk 0:01:01]}  Rd8 {[%clk 0:01:04]} 31. Nb4 {[%clk 0:00:58]}  a5 {[%clk 0:01:02]} 32. Nc2 {[%clk 0:00:56]}  Rxd5 {[%clk 0:01:01]} 33. Kc1 {[%clk 0:00:55]}  Rd3 {[%clk 0:00:59]} 34. Rf4 {[%clk 0:00:54]}  Kc7 {[%clk 0:00:56]} 35. a4 {[%clk 0:00:54]}  Kd6 {[%clk 0:00:55]} 36. a3 {[%clk 0:00:54]}  b6 {[%clk 0:00:55]} 37. Kb2 {[%clk 0:00:50]}  Rd2 {[%clk 0:00:54]} 38. Kc3 {[%clk 0:00:46]}  Rh2 {[%clk 0:00:52]} 39. Nd4 {[%clk 0:00:47]}  Nxd4 {[%clk 0:00:29]} 40. Kxd4 {[%clk 0:00:48]}  Rd2+ {[%clk 0:00:27]} 41. Kc4 {[%clk 0:00:46]}  Ke7 {[%clk 0:00:23]} 42. Kb5 {[%clk 0:00:45]}  Rb2+ {[%clk 0:00:23]} 43. Kc6 {[%clk 0:00:44]}  Rb3 {[%clk 0:00:24]} 44. Rf6 {[%clk 0:00:42]}  Rxa3 {[%clk 0:00:22]} 45. Kxb6 {[%clk 0:00:43]}  Rxa4 {[%clk 0:00:23]} 46. f4 {[%clk 0:00:40]}  Ra1 {[%clk 0:00:23]} 47. Kb5 {[%clk 0:00:38]}  a4 {[%clk 0:00:23]} 48. Ra6 {[%clk 0:00:38]}  a3 {[%clk 0:00:22]} 49. Kb4 {[%clk 0:00:37]}  a2 {[%clk 0:00:22]} 50. Kb3 {[%clk 0:00:33]}  Rh1 {[%clk 0:00:20]} 51. Kxa2 {[%clk 0:00:29]}  Rxh4 {[%clk 0:00:20]} 52. Ra4 {[%clk 0:00:29]}  Rh3 {[%clk 0:00:20]} 53. Kb2 {[%clk 0:00:29]}  Rf3 {[%clk 0:00:19]} 54. Kc2 {[%clk 0:00:30]}  Ke6 {[%clk 0:00:20]} 55. Ra6+ {[%clk 0:00:27]}  Kf5 {[%clk 0:00:18]} 56. Rf6+ {[%clk 0:00:23]}  Kg4 {[%clk 0:00:19]} 57. Rxf7 {[%clk 0:00:23]}  Rxf4 {[%clk 0:00:19]} 58. Rh7 {[%clk 0:00:23]}  Kxg5 {[%clk 0:00:20]} 59. Kd3 {[%clk 0:00:24]}  h4 {[%clk 0:00:20]} 60. Ke3 {[%clk 0:00:25]}  Rf8 {[%clk 0:00:20]} 61. Rg7 {[%clk 0:00:24]}  Kh5 {[%clk 0:00:20]} 62. Ke2 {[%clk 0:00:24]}  g5 {[%clk 0:00:20]} 63. Rh7+ {[%clk 0:00:24]}  Kg4 {[%clk 0:00:21]} 64. Rb7 {[%clk 0:00:25]}  h3 {[%clk 0:00:21]} 65. Rh7 {[%clk 0:00:24]}  Kg3 {[%clk 0:00:21]} 66. Ke3 {[%clk 0:00:24]}  g4 {[%clk 0:00:21]} 0-1


[Site "https://www.chess.com"]